bitfinex/quotes_SOLUSD_20250917
["timestamp","ask_amount","ask_price","bid_price","bid_amount"]
[1758091801350,5.2322954,236.52,236.51,0.03]
[1758091801554,6.5302423,236.52,236.51,0.03]
[1758091806655,20.12583631,236.52,236.51,0.03]
[1758091807251,20.12583631,236.52,236.48,0.03]
[1758091807252,26.28432314,236.49,236.48,0.03]
[1758091807447,32.77405764,236.49,236.48,0.03]
[1758091807647,37.72256624,236.49,236.48,0.03]
[1758091807844,31.23283174,236.49,236.48,0.03]
[1758091808150,46.12637265,236.49,236.48,0.03]
[1758091808741,1.58227004,236.49,236.48,0.03]
[1758091809164,0.06,236.52,236.48,1.9979469]
[1758091809368,0.06,236.52,236.5,1.2979469]
[1758091809761,0.06,236.52,236.51,0.67]
[1758091810565,0.06,236.52,236.51,35.1079469]
[1758091817872,0.06,236.52,236.51,53.85830973]
[1758091818084,1e-08,236.52,236.51,53.85830973]
[1758091818458,1e-08,236.52,236.51,50.39691347]
[1758091820358,1e-08,236.52,236.5,4.65113481]
[1758091820359,1e-08,236.52,236.5,4.22830183]
[1758091820561,1e-08,236.52,236.51,33.12]
[1758091820785,1e-08,236.52,236.51,33.79]
[1758091822591,1e-08,236.52,236.51,26.67]
[1758091822775,1e-08,236.52,236.51,59.77]
[1758091824691,1e-08,236.52,236.51,59.1]
[1758091825761,1e-08,236.52,236.51,59.13]
[1758091826191,1.96794691,236.52,236.51,0.03]
[1758091826375,1.96794691,236.52,236.51,33.13]
[1758091826858,1.96794691,236.52,236.51,0.03]
[1758091827291,2.25227005,236.52,236.51,0.03]
[1758091827859,15.84786406,236.52,236.51,0.03]
[1758091830388,2.25227005,236.52,236.51,0.03]
[1758091830591,1e-08,236.52,236.51,0.03]
[1758091831884,1e-08,236.52,236.51,0.72]
[1758091832888,1e-08,236.52,236.51,2.0179469]
[1758091833775,1e-08,236.52,236.51,2.7484798]
[1758091834785,1e-08,236.52,236.51,0.03]
[1758091835311,1e-08,236.52,236.51,0.72]
[1758091836595,1e-08,236.52,236.51,2.7484798]
[1758091839188,1e-08,236.52,236.51,2.0584798]
[1758091839404,1e-08,236.52,236.51,2.7484798]
[1758091841104,1e-08,236.52,236.51,0.03]
[1758091841329,1e-08,236.52,236.51,33.11]
[1758091841913,1e-08,236.52,236.51,33.8]
[1758091842119,1e-08,236.52,236.51,33.11]
[1758091842711,1e-08,236.52,236.51,35.1384798]
[1758091842904,1e-08,236.52,236.51,35.8284798]
[1758091843298,1e-08,236.52,236.51,33.8]
[1758091843512,1e-08,236.52,236.51,35.8284798]
[1758091846921,1e-08,236.52,236.51,2.7484798]
[1758091847119,1e-08,236.52,236.51,35.8284798]
[1758091847816,1e-08,236.52,236.51,0.72]
[1758091848018,1e-08,236.52,236.51,35.1384798]
[1758091848208,1e-08,236.52,236.51,33.11]
[1758091850625,1e-08,236.52,236.51,35.8284798]
[1758091851623,1e-08,236.52,236.51,40.05663082]
[1758091855406,1e-08,236.52,236.51,38.02815102]
[1758091855606,1e-08,236.52,236.51,40.05663082]
[1758091856415,1e-08,236.52,236.51,6.97663082]
[1758091856619,1e-08,236.52,236.51,40.03663082]
[1758091857126,1e-08,236.52,236.51,39.34663082]
[1758091857426,1e-08,236.52,236.51,40.03663082]
[1758091858327,1e-08,236.52,236.51,6.28663082]
[1758091858518,1e-08,236.52,236.51,39.34663082]
[1758091859527,1e-08,236.52,236.51,37.31815102]
[1758091860127,1e-08,236.52,236.51,4.25815102]
[1758091860432,1e-08,236.52,236.51,37.31815102]
[1758091861537,1e-08,236.52,236.51,38.00815102]
[1758091861910,1e-08,236.52,236.51,37.31815102]
[1758091862930,1e-08,236.52,236.51,26.03]
[1758091863110,1e-08,236.52,236.51,33.07]
[1758091865603,1e-08,236.52,236.51,37.29815102]
[1758091865804,1e-08,236.52,236.51,40.01663082]
[1758091866017,1e-08,236.52,236.51,37.98815102]
[1758091867317,1e-08,236.52,236.51,40.01663082]
[1758091868141,0.06,236.53,236.52,26.0]
[1758091868435,0.06,236.53,236.52,59.04]
[1758091869816,0.06,236.53,236.52,59.73]
[1758091874739,0.06,236.53,236.52,63.95797226]
[1758091875349,0.06,236.53,236.51,0.03]
[1758091875543,0.06,236.53,236.52,33.02]
[1758091876138,0.76,236.53,236.51,26.03]
[1758091876348,0.06,236.53,236.52,33.02]
[1758091881852,0.06,236.53,236.52,33.71]
[1758091883453,0.06,236.53,236.52,37.93797226]
[1758091884355,0.06,236.53,236.52,39.96645206]
[1758091885744,0.06,236.53,236.52,37.93797226]
[1758091885927,0.06,236.53,236.52,39.96645206]
[1758091886441,0.06,236.53,236.52,37.93797226]
[1758091886835,0.06,236.53,236.52,4.91797226]
[1758091887039,0.06,236.53,236.52,37.91797226]
[1758091888854,0.06,236.53,236.52,39.94645206]
[1758091889238,0.06,236.53,236.52,26.0]
[1758091889553,0.06,236.53,236.52,59.0]
[1758091889851,0.06,236.53,236.52,59.71]
[1758091890442,0.06,236.53,236.52,59.0]
[1758091890935,0.06,236.53,236.52,63.93797226]
[1758091892142,0.06,236.53,236.52,59.0]
[1758091892347,0.06,236.53,236.52,59.03]
[1758091892528,0.06,236.53,236.52,63.25797226]
[1758091893137,0.76,236.53,236.52,0.03]
[1758091893461,2.7884798,236.53,236.52,33.03]
[1758091893958,0.76,236.53,236.52,33.03]
[1758091894261,2.7884798,236.53,236.52,33.03]
[1758091894438,7.01627331,236.53,236.52,0.03]
[1758091894640,2.7884798,236.53,236.52,33.03]
[1758091895853,2.05918416,236.53,236.52,37.31761777]
[1758091899259,0.76,236.53,236.52,37.31761777]
[1758091899560,2.05918416,236.53,236.52,4.31761777]
[1758091899775,6.28697767,236.53,236.52,37.29761777]
[1758091900459,2.05918416,236.53,236.52,37.29761777]
[1758091901644,1.35918416,236.53,236.52,37.29761777]
[1758091902063,2.05918416,236.53,236.52,37.29761777]
[1758091902670,5.58697767,236.53,236.52,37.29761777]
[1758091902972,0.76,236.53,236.52,37.29761777]
[1758091903270,0.06,236.53,236.52,39.30680193]
[1758091904838,0.06,236.53,236.52,43.53477419]
[1758091910972,0.06,236.53,236.52,43.95757141]
[1758091911842,0.06,236.53,236.52,57.55316542]
[1758091912970,0.06,236.53,236.52,56.25398126]
[1758091913170,0.06,236.53,236.52,57.55316542]
[1758091915673,0.06,236.53,236.52,23.27398126]
[1758091915854,0.06,236.53,236.52,57.1103682]
[1758091916449,0.06,236.53,236.52,22.85118404]
[1758091916656,0.06,236.53,236.52,57.1103682]
[1758091916861,0.06,236.53,236.52,43.51477419]
[1758091919467,0.06,236.53,236.52,42.21559003]
[1758091919675,0.06,236.53,236.52,43.51477419]
[1758091919874,0.06,236.53,236.52,34.54559003]
[1758091920078,0.06,236.53,236.52,43.48477419]
[1758091923073,0.06,236.53,236.52,42.18559003]
[1758091923273,0.06,236.53,236.52,43.48477419]
[1758091923997,0.06,236.53,236.52,34.54559003]
[1758091924291,0.06,236.53,236.52,37.25761777]
[1758091924486,0.06,236.53,236.52,41.48559003]
[1758091924789,0.06,236.53,236.52,37.25761777]
[1758091925008,0.06,236.53,236.52,41.48559003]
[1758091926264,0.06,236.53,236.52,43.88757141]
[1758091928897,0.06,236.53,236.52,4.31761777]
[1758091929093,0.73,236.53,236.52,37.25761777]
[1758091929702,0.06,236.53,236.52,37.25761777]
[1758091931798,0.73,236.53,236.52,37.25761777]
[1758091932300,0.06,236.53,236.52,37.25761777]
[1758091932696,0.73,236.53,236.52,37.25761777]
[1758091933579,0.06,236.53,236.52,37.25761777]
[1758091933996,0.06,236.53,236.52,37.23761777]
[1758091934188,0.06,236.53,236.52,42.14559003]
[1758091934389,0.06,236.53,236.52,43.44477419]
[1758091935791,0.06,236.53,236.52,57.0403682]
[1758091936100,0.06,236.53,236.52,9.84477419]
[1758091936291,0.06,236.53,236.52,42.76477419]
[1758091936601,0.06,236.53,236.52,43.44477419]
[1758091937286,0.06,236.53,236.52,8.54559003]
[1758091937486,0.06,236.53,236.52,42.14559003]
[1758091937681,0.06,236.53,236.52,43.44477419]
[1758091938703,0.06,236.53,236.52,4.31761777]
[1758091938901,0.06,236.53,236.52,37.23761777]
[1758091940401,0.06,236.53,236.52,37.91761777]
[1758091940801,0.06,236.53,236.52,38.53680193]
[1758091941882,0.06,236.53,236.52,52.81239594]
[1758091944298,0.06,236.53,236.52,53.09671908]
[1758091949522,0.06,236.53,236.52,51.79753492]
[1758091949821,0.06,236.53,236.52,53.09671908]
[1758091953315,0.06,236.53,236.52,57.32469134]
[1758091955923,0.06,236.53,236.52,58.05315834]
[1758091956921,0.06,236.55,236.53,13.87991715]
[1758091957233,0.67,236.64,236.57,15.90756831]
[1758091957447,0.06,236.66,236.58,13.87991715]
[1758091957608,0.06,236.66,236.6,43.93521947]
[1758091957609,0.73,236.66,236.6,43.93521947]
[1758091958005,0.73,236.66,236.6,46.2976606]
[1758091958205,0.06,236.66,236.6,46.2976606]
[1758091958939,0.06,236.66,236.6,50.52420328]
[1758091960131,0.06,236.66,236.6,60.93258069]
[1758091960311,0.06,236.66,236.6,64.33313807]
[1758091961106,0.67,236.65,236.6,64.33313807]
[1758091961410,0.06,236.66,236.6,64.33313807]
[1758091961702,0.06,236.66,236.6,64.75579233]
[1758091961901,0.73,236.66,236.6,64.75579233]
[1758091963940,0.73,236.66,236.6,97.63579233]
[1758091964158,0.73,236.66,236.6,97.21313807]
[1758091966552,0.67,236.63,236.6,58.23492953]
[1758091966729,0.67,236.63,236.6,93.14258069]
[1758091968257,0.67,236.63,236.6,60.26258069]
[1758091968457,0.73,236.61,236.6,1.69244113]
[1758091968866,0.06,236.61,236.6,50.8656863]
[1758091969039,0.06,236.61,236.6,74.45235828]
[1758091969246,0.06,236.61,236.6,76.48000944]
[1758091969655,0.06,236.61,236.6,77.15000944]
[1758091970879,0.06,236.61,236.6,76.48000944]
[1758091971303,0.06,236.61,236.6,77.5726637]
[1758091972848,0.06,236.61,236.6,78.0726637]
[1758091974084,0.06,236.61,236.6,80.10031486]
[1758091974450,0.06,236.66,236.64,13.59559401]
[1758091974649,0.06,236.66,236.65,48.48324517]
[1758091974862,0.06,236.66,236.65,52.70889486]
[1758091975068,0.73,236.66,236.65,54.73654602]
[1758091975274,0.73,236.66,236.65,52.70889486]
[1758091976757,0.06,236.66,236.65,52.70889486]
[1758091976957,0.77,236.66,236.65,52.70889486]
[1758091977697,0.06,236.66,236.65,52.993218]
[1758091977884,0.06,236.66,236.65,56.15343412]
[1758091978092,0.06,236.66,236.65,53.703218]
[1758091978259,0.06,236.66,236.65,55.73086916]
[1758091979160,0.06,236.66,236.65,53.703218]
[1758091979467,0.06,236.66,236.65,55.73086916]
[1758091981080,0.77,236.66,236.65,21.87654602]
[1758091981285,0.77,236.66,236.65,35.16765116]
[1758091981778,0.77,236.66,236.65,2.02765116]
[1758091981989,0.77,236.66,236.65,35.16765116]
[1758091982482,0.06,236.66,236.65,37.19530232]
[1758091982684,0.77,236.66,236.65,35.16765116]
[1758091983886,0.06,236.66,236.65,35.16765116]
[1758091984196,0.77,236.66,236.65,2.02765116]
[1758091984570,2.79765116,236.66,236.65,33.16]
[1758091993465,0.77,236.66,236.65,33.16]
[1758091994673,2.79765116,236.66,236.65,33.16]
[1758091996295,2.79765116,236.66,236.63,33.06]
[1758091996296,7.0231223,236.66,236.63,33.06]
[1758091996476,2.02765116,236.64,236.63,33.06]
[1758091996682,6.96347942,236.64,236.63,33.06]
[1758091999501,17.52805007,236.64,236.61,33.09]
[1758091999720,2.02765116,236.62,236.61,33.09]
[1758091999875,2.73765116,236.62,236.61,33.09]
[1758092000071,0.71,236.62,236.61,33.09]
[1758092000294,2.73765116,236.62,236.61,33.09]
[1758092001196,6.9638366,236.62,236.61,33.09]
[1758092003404,4.93618544,236.62,236.61,33.09]
[1758092003703,6.9638366,236.62,236.61,33.09]
[1758092006801,6.9638366,236.62,236.61,0.03]
[1758092007314,4.22618544,236.62,236.61,0.03]
[1758092007480,4.88618544,236.62,236.61,0.03]
[1758092007688,6.9138366,236.62,236.61,0.03]
[1758092009604,6.2538366,236.62,236.61,0.03]
[1758092009808,4.22597207,236.64,236.61,0.03]
[1758092010108,2.02765116,236.62,236.61,0.03]
[1758092011903,2.02765116,236.64,236.61,0.71]
[1758092012307,2.02765116,236.64,236.61,0.03]
[1758092012711,2.02765116,236.62,236.61,0.03]
[1758092013106,4.88618544,236.62,236.61,0.03]
[1758092013295,6.9138366,236.62,236.61,0.03]
[1758092014816,2.68765116,236.62,236.61,0.03]
[1758092015798,6.9138366,236.62,236.61,0.03]
[1758092016427,6.2538366,236.62,236.61,0.03]
[1758092016597,2.08765116,236.64,236.61,0.03]
[1758092016800,6.31349667,236.64,236.61,0.71]
[1758092016998,2.02765116,236.63,236.61,0.71]
[1758092018001,1.29785668,236.63,236.61,0.71]
[1758092018605,1.29785668,236.63,236.61,0.03]
[1758092018606,5.52387945,236.63,236.61,0.03]
[1758092018817,1.29785668,236.63,236.61,0.03]
[1758092019017,5.52388348,236.63,236.61,0.03]
[1758092019315,1.29785668,236.63,236.61,0.03]
[1758092019519,1.95785668,236.62,236.61,0.03]
[1758092020218,5.52404212,236.62,236.61,0.03]
[1758092022010,6.18404212,236.62,236.61,0.03]
[1758092024624,4.22618544,236.62,236.61,0.03]
[1758092024921,5.52404212,236.62,236.61,0.03]
[1758092026804,6.18404212,236.62,236.61,0.03]
[1758092027214,5.52404212,236.62,236.61,0.03]
[1758092027822,6.18404212,236.62,236.61,0.03]
[1758092028935,5.52404212,236.62,236.61,0.03]
[1758092029517,4.22618544,236.62,236.61,0.03]
[1758092029714,5.52404212,236.62,236.61,0.03]
[1758092030315,1.29785668,236.62,236.61,0.03]
[1758092032005,1.95785668,236.62,236.61,0.03]
[1758092032435,6.18404212,236.62,236.61,0.03]
[1758092032727,4.22618544,236.62,236.61,0.03]
[1758092032928,5.52404212,236.62,236.61,0.03]
[1758092037827,1.29785668,236.62,236.61,0.03]
[1758092038933,4.22600684,236.63,236.61,0.03]
[1758092039330,5.52404212,236.62,236.61,0.03]
[1758092040115,4.22618544,236.62,236.61,0.03]
[1758092040315,5.52404212,236.62,236.61,0.03]
[1758092044129,4.22618544,236.62,236.61,0.03]
[1758092044329,5.52404212,236.62,236.61,0.03]
[1758092045119,1.29785668,236.62,236.61,0.03]
[1758092046543,5.52404212,236.62,236.61,0.03]
[1758092047527,6.18404212,236.62,236.61,0.03]
[1758092047936,6.24404212,236.62,236.61,0.03]
[1758092048146,6.52836526,236.62,236.61,0.03]
[1758092048454,10.08543403,236.62,236.61,0.03]
[1758092049155,11.77902169,236.62,236.61,0.03]
[1758092053160,8.22195292,236.62,236.61,0.03]
[1758092053761,11.77902169,236.62,236.61,0.03]
[1758092054163,0.28432314,236.61,236.58,0.03]
[1758092054465,1.58217982,236.59,236.58,0.03]
[1758092054633,2.24217982,236.59,236.58,0.03]
[1758092055332,5.80214652,236.59,236.54,0.03]
[1758092055634,1.29785668,236.55,236.54,0.03]
[1758092055830,5.80961588,236.55,236.54,0.03]
[1758092057549,6.46961588,236.55,236.54,0.03]
[1758092057830,5.80961588,236.55,236.54,0.03]
[1758092058981,4.22707866,236.57,236.54,0.71]
[1758092059144,14.00245363,236.58,236.54,0.71]
[1758092059341,12.70459695,236.58,236.54,0.71]
[1758092060067,14.00245363,236.58,236.54,0.71]
[1758092060766,18.22939637,236.58,236.54,0.71]
[1758092060974,12.70459695,236.58,236.54,0.71]
[1758092061139,4.22692469,236.58,236.54,2.00785668]
[1758092061435,4.22692469,236.58,236.55,0.68]
[1758092063172,4.22668582,236.6,236.55,0.68]
[1758092063371,5.5245425,236.6,236.55,0.68]
[1758092063872,4.28627857,236.62,236.55,0.68]
[1758092064050,4.28627857,236.62,236.56,1.29785668]
[1758092064251,4.28627857,236.62,236.57,0.68]
[1758092064559,4.28627857,236.62,236.58,33.1]
[1758092064764,4.28627857,236.62,236.59,0.68]
[1758092066571,4.28627857,236.62,236.58,33.1]
[1758092066751,4.28627857,236.62,236.59,0.71]
[1758092067064,4.28627857,236.62,236.6,0.71]
[1758092067245,5.58413525,236.62,236.6,0.71]
[1758092068370,0.06,236.61,236.6,0.71]
[1758092069269,4.28651911,236.61,236.58,33.81]
[1758092069569,4.28651911,236.61,236.59,0.71]
[1758092070070,0.06,236.61,236.6,0.71]
[1758092074477,0.06,236.61,236.6,4.93654268]
[1758092074657,0.06,236.61,236.6,46.25264763]
[1758092075067,0.06,236.61,236.6,43.29624995]
[1758092075269,0.06,236.61,236.6,2.40279926]
[1758092075453,0.06,236.61,236.6,35.92279926]
[1758092076056,0.06,236.61,236.6,34.23]
[1758092077270,0.06,236.61,236.6,60.31]
[1758092077575,0.06,236.61,236.6,60.29]
[1758092077878,0.06,236.61,236.6,34.29]
[1758092080080,0.06,236.61,236.6,0.71]
[1758092080286,0.06,236.61,236.6,34.27]
[1758092081266,0.06,236.61,236.6,33.56]
[1758092081790,0.06,236.61,236.6,34.27]
[1758092085788,0.06,236.61,236.6,0.71]
[1758092085980,0.06,236.61,236.6,34.23]
[1758092091001,0.06,236.61,236.6,33.52]
[1758092094178,5.00636405,236.61,236.6,33.52]
[1758092094698,7.03447385,236.61,236.6,33.42]
[1758092097380,5.00636405,236.61,236.6,33.42]
[1758092097582,7.03447385,236.61,236.6,33.42]
[1758092098378,5.00636405,236.61,236.6,33.42]
[1758092098586,6.31447385,236.61,236.6,33.42]
[1758092098997,6.31447385,236.61,236.6,33.4]
[1758092098998,4.28636405,236.61,236.6,33.4]
[1758092099408,6.31447385,236.61,236.6,33.4]
[1758092100714,7.02447385,236.61,236.6,33.4]
[1758092101196,4.99636405,236.61,236.6,33.4]
[1758092101395,4.28636405,236.61,236.6,33.4]
[1758092101582,4.99636405,236.61,236.6,33.4]
[1758092101787,7.02447385,236.61,236.6,33.4]
[1758092102095,6.31447385,236.61,236.6,33.4]
[1758092102294,0.06,236.61,236.6,34.1]
[1758092103304,4.28636405,236.61,236.6,33.4]
[1758092104012,6.31447385,236.61,236.6,33.4]
[1758092106903,0.06,236.61,236.6,33.4]
[1758092108010,4.28636405,236.61,236.6,33.4]
[1758092109191,6.31447385,236.61,236.6,33.4]
[1758092114721,6.31447385,236.61,236.6,33.26]
[1758092115010,7.02447385,236.61,236.6,33.26]
[1758092115303,6.31447385,236.61,236.6,33.26]
[1758092116008,0.06,236.61,236.6,33.26]
[1758092116205,0.06,236.61,236.6,33.96]
[1758092118616,4.28636405,236.61,236.6,33.26]
[1758092118820,0.06,236.61,236.6,33.26]
[1758092119016,0.06,236.61,236.6,33.96]
[1758092129504,0.06,236.61,236.6,33.26]
[1758092130231,0.06,236.61,236.6,33.96]
[1758092130531,4.28636405,236.61,236.6,33.82]
[1758092131400,4.28636405,236.61,236.6,33.12]
[1758092132012,4.28636405,236.61,236.6,33.82]
[1758092132704,4.28636405,236.61,236.6,33.12]
[1758092133000,4.28636405,236.61,236.6,33.82]
[1758092133423,4.28636405,236.61,236.6,33.12]
[1758092134134,6.98447385,236.61,236.56,0.73]
[1758092134320,6.98447385,236.61,236.56,0.03]
[1758092134634,6.98447385,236.61,236.57,33.1]
[1758092134803,2.0281098,236.59,236.57,33.1]
[1758092135004,2.6981098,236.59,236.57,33.1]
[1758092135404,4.22689999,236.58,236.57,33.1]
[1758092135922,4.22689999,236.58,236.57,33.8]
[1758092137234,2.0281098,236.59,236.57,33.1]
[1758092138033,2.0281098,236.59,236.57,33.8]
[1758092138331,6.2548777,236.59,236.57,33.8]
[1758092138513,2.6981098,236.58,236.56,0.03]
[1758092138829,2.0281098,236.57,236.56,0.03]
[1758092139210,2.6981098,236.57,236.56,0.03]
[1758092139817,1.96903125,236.57,236.56,0.03]
[1758092140242,28.25335439,236.57,236.56,0.03]
[1758092140422,32.48043305,236.57,236.56,0.03]
[1758092140745,45.18503,236.57,236.56,0.03]
[1758092141313,55.75272666,236.57,236.54,1e-08]
[1758092141535,31.14429924,236.55,236.54,1e-08]
[1758092142036,31.81429924,236.55,236.54,1e-08]
[1758092142230,28.25335439,236.55,236.54,1e-08]
[1758092142628,32.48079045,236.55,236.54,1e-08]
[1758092143233,36.03745544,236.55,236.54,1e-08]
[1758092143527,32.48079045,236.55,236.54,1e-08]
[1758092144261,26.0,236.51,236.49,0.03]
[1758092144538,29.83909323,236.5,236.49,0.03]
[1758092144727,32.48168419,236.5,236.49,0.03]
[1758092144924,34.17606097,236.5,236.49,0.03]
[1758092145236,37.72776174,236.5,236.49,0.03]
[1758092146643,37.72776174,236.5,236.47,0.03]
[1758092146846,1.29903125,236.48,236.47,0.03]
[1758092148957,5.52771866,236.48,236.47,0.03]
[1758092149267,4.89868741,236.48,236.47,0.03]
[1758092149635,5.52771866,236.48,236.47,0.03]
[1758092149838,5.52771866,236.48,236.47,0.73]
[1758092150045,5.52771866,236.48,236.47,0.03]
[1758092152758,4.22868741,236.48,236.47,0.73]
[1758092153059,137.22749251,236.5,236.47,0.73]
[1758092153658,1.29903125,236.48,236.47,0.73]
[1758092154545,1.35903125,236.48,236.47,0.73]
[1758092155049,1.35903125,236.48,236.47,0.03]
[1758092155253,5.58771866,236.48,236.47,0.03]
[1758092156279,4.28868741,236.48,236.47,0.71]
[1758092158566,6.29771866,236.48,236.47,0.03]
[1758092159344,5.58771866,236.48,236.47,0.03]
[1758092162665,4.28868741,236.48,236.47,0.03]
[1758092162873,5.58771866,236.48,236.47,0.03]
[1758092164448,6.5820418,236.48,236.47,0.03]
[1758092169989,5.28301055,236.48,236.47,0.03]
[1758092170277,5.8720418,236.48,236.47,0.03]
[1758092173877,0.06,236.48,236.47,0.71]
[1758092177086,0.06,236.48,236.47,6.23789749]
[1758092177280,0.06,236.48,236.47,19.8334915]
[1758092177586,0.06,236.48,236.47,24.15564375]
[1758092178662,0.06,236.48,236.47,18.62774626]
[1758092178880,0.06,236.48,236.47,51.90774626]
[1758092179892,0.06,236.48,236.47,53.20677751]
[1758092184674,0.06,236.48,236.47,51.90774626]
[1758092184885,0.06,236.48,236.47,53.20677751]
[1758092187994,0.06,236.48,236.47,51.82774626]
[1758092188181,0.06,236.48,236.47,53.12677751]
[1758092189996,0.06,236.48,236.47,51.82774626]
[1758092190172,0.06,236.48,236.47,53.12677751]
[1758092190679,0.06,236.48,236.47,57.35564375]
[1758092192096,0.06,236.48,236.47,5.03215225]
[1758092192300,0.06,236.48,236.47,38.19215225]
[1758092193786,0.06,236.48,236.47,37.51215225]
[1758092193992,0.76,236.48,236.47,0.03]
[1758092194200,2.05903125,236.48,236.47,33.19]
[1758092194999,6.28771866,236.48,236.47,0.03]
[1758092195202,4.98868741,236.48,236.47,33.19]
[1758092195411,4.98868741,236.48,236.47,0.03]
[1758092195601,6.28771866,236.48,236.47,33.19]
[1758092196004,4.98868741,236.48,236.47,33.19]
[1758092196313,6.28771866,236.48,236.47,33.19]
[1758092198006,6.28771866,236.48,236.47,0.03]
[1758092198188,6.28771866,236.48,236.47,33.17]
[1758092199692,6.5720418,236.48,236.47,0.03]
[1758092200989,6.5720418,236.48,236.46,0.03]
[1758092200990,131.98432314,236.47,236.44,0.03]
[1758092201195,1.58335439,236.45,236.44,0.03]
[1758092201516,5.81257832,236.45,236.44,0.03]
[1758092201810,7.24565591,236.45,236.44,0.03]
[1758092202214,10.80129228,236.45,236.44,0.03]
[1758092202992,7.24565591,236.45,236.44,0.03]
[1758092203700,26.28432314,236.42,236.39,0.03]
[1758092203911,31.87048494,236.42,236.39,0.03]
[1758092204211,32.57048494,236.42,236.39,0.03]
[1758092205190,0.28432314,236.41,236.38,0.03]
[1758092205486,2.31643198,236.39,236.38,0.03]
[1758092205700,6.54672936,236.39,236.38,0.03]
[1758092205897,7.24672936,236.39,236.38,0.03]
[1758092207627,0.28432314,236.37,236.32,0.2]
[1758092207799,2.03210884,236.33,236.32,0.2]
[1758092208122,2.73210884,236.33,236.32,0.2]
[1758092208506,3.01643198,236.33,236.32,0.2]
[1758092208701,3.01643198,236.33,236.26,0.67]
[1758092208702,0.28432314,236.32,236.26,0.67]
[1758092209008,6.26455477,236.27,236.26,0.67]
[1758092209824,6.26455477,236.27,236.25,33.1]
[1758092210136,2.03210884,236.26,236.25,33.1]
[1758092212201,4.23280423,236.25,236.23,0.2]
[1758092212396,2.03210884,236.24,236.23,0.2]
[1758092212714,2.03210884,236.24,236.23,0.87]
[1758092213435,2.03210884,236.24,236.23,0.2]
[1758092216625,0.7,236.28,236.23,0.87]
[1758092216923,2.03210884,236.24,236.23,0.2]
[1758092217513,2.03210884,236.24,236.23,0.87]
[1758092219133,4.23285934,236.25,236.23,0.87]
[1758092219327,4.23285934,236.25,236.24,0.67]
[1758092219626,4.23203053,236.3,236.24,0.67]
[1758092219800,2.03210884,236.27,236.25,33.1]
[1758092220004,2.03210884,236.27,236.26,0.67]
[1758092220205,2.03210884,236.27,236.26,33.77]
[1758092220604,4.23238243,236.28,236.26,33.77]
[1758092220805,2.03210884,236.27,236.26,33.1]
[1758092221399,2.03210884,236.27,236.26,33.77]
[1758092222530,6.26449127,236.28,236.26,33.77]
[1758092222738,4.23238243,236.28,236.27,0.67]
[1758092222922,6.26449127,236.28,236.27,0.67]
[1758092225417,2.03210884,236.28,236.27,0.67]
[1758092226140,142.9791613,236.32,236.27,0.67]
[1758092226141,4.2317295,236.31,236.27,0.67]
[1758092226325,2.03210884,236.28,236.27,0.67]
[1758092226527,4.2317295,236.31,236.27,0.67]
[1758092226847,2.03210884,236.3,236.27,0.67]
[1758092227212,6.26407849,236.3,236.27,0.67]
[1758092227650,4.23131168,236.34,236.27,0.67]
[1758092227946,2.03210884,236.32,236.27,0.67]
[1758092228131,2.03210884,236.31,236.27,0.67]
[1758092229145,2.03210884,236.32,236.27,0.67]
[1758092229522,4.2317295,236.31,236.27,0.67]